bitfinex-derivatives/quotes_ETHF0:USTF0_20251007
["timestamp","ask_amount","ask_price","bid_price","bid_amount"]
[1759815801151,0.92997577,4727.2,4727.1,0.00221821]
[1759815804148,0.71797577,4727.2,4727.1,0.74901821]
[1759815808153,0.00217577,4727.2,4727.1,0.74901821]
[1759815808352,0.00217577,4727.2,4727.1,0.96101821]
[1759815810964,1.074,4728.5,4727.1,0.96101821]
[1759815810965,0.58756,4728.7,4728.6,0.2069]
[1759815811261,1.16443344,4728.7,4728.6,0.7468]
[1759815811858,1.16679777,4728.7,4728.6,0.7468]
[1759815813460,0.71816433,4728.7,4728.6,0.7468]
[1759815813665,0.71816433,4728.7,4728.6,3.9546]
[1759815813866,0.20946433,4728.7,4728.6,3.9546]
[1759815814664,0.73546433,4728.7,4728.6,0.7468]
[1759815814959,0.73546433,4728.7,4728.3,0.2174]
[1759815814960,0.7368,4728.4,4728.3,0.2174]
[1759815815356,0.7368,4728.4,4728.3,0.5455]
[1759815815760,0.7368,4728.4,4728.3,0.7625]
[1759815816662,0.3188,4728.3,4728.1,3.2078]
[1759815816863,0.1316,4728.5,4727.7,0.59374]
[1759815816864,0.4148,4727.8,4727.7,0.59374]
[1759815817166,0.7416,4727.8,4727.7,1.32624]
[1759815817356,0.5419,4727.8,4727.7,1.32624]
[1759815817556,0.2151,4727.8,4727.7,1.32624]
[1759815817759,0.2151,4728.0,4727.9,0.59472]
[1759815818060,0.2151,4728.0,4727.9,1.11422]
[1759815819356,0.2151,4728.0,4727.9,0.7337]
[1759815819357,1.12212,4728.0,4727.9,0.7337]
[1759815820271,1.24582,4728.0,4727.9,0.4274]
[1759815820573,1.24582,4728.0,4727.9,0.2132]
[1759815821562,0.38053,4727.9,4727.7,0.212]
[1759815821768,0.7416,4727.8,4727.7,0.212]
[1759815821965,0.3268,4727.7,4727.6,3.80035]
[1759815822170,0.7416,4727.7,4727.6,4.01355]
[1759815822370,0.7416,4727.7,4727.6,4.31985]
[1759815822672,0.7416,4727.7,4727.6,3.7273]
[1759815824471,0.7416,4727.7,4727.6,3.9415]
[1759815825072,0.2151,4727.7,4727.6,3.9415]
[1759815825571,0.92242,4728.0,4727.9,0.4274]
[1759815825768,1.12212,4728.0,4727.9,0.7337]
[1759815827268,0.5419,4728.0,4727.9,0.9457]
[1759815827771,0.7416,4728.0,4727.9,0.9457]
[1759815827968,0.8653,4728.0,4727.9,0.6394]
[1759815828170,0.8653,4728.0,4727.9,0.4274]
[1759815828370,0.3268,4727.9,4727.6,3.89464]
[1759815828571,1.12214,4727.7,4727.6,3.2078]
[1759815829770,1.12214,4727.7,4727.6,3.421]
[1759815830374,0.7416,4727.7,4727.6,3.421]
[1759815830576,0.7416,4727.7,4727.6,3.7273]
[1759815832082,0.7416,4727.7,4727.6,3.9415]
[1759815833878,0.7416,4727.7,4727.6,3.2078]
[1759815835181,0.7416,4727.7,4727.6,3.421]
[1759815835781,0.7416,4727.7,4727.6,3.2078]
[1759815836880,0.7416,4727.7,4727.1,0.21421821]
[1759815836881,0.4148,4727.2,4727.1,0.00221821]
[1759815837184,4.32451165,4727.2,4727.1,0.00221821]
[1759815838480,7.74431165,4727.2,4727.1,0.00221821]
[1759815840787,7.74431165,4727.2,4727.1,0.73591821]
[1759815841079,3.74423165,4727.2,4727.1,0.73591821]
[1759815841285,0.59256,4727.5,4727.1,4.32430821]
[1759815841587,0.38056,4727.5,4727.4,0.4274]
[1759815841889,0.38056,4727.5,4727.4,0.7337]
[1759815842186,0.92246,4727.5,4727.4,0.7337]
[1759815842385,1.12216,4727.5,4727.4,0.7337]
[1759815842584,0.90708,4727.3,4727.2,0.5195]
[1759815842786,1.12218,4727.3,4727.2,0.2132]
[1759815843283,0.5419,4727.3,4727.2,0.7337]
[1759815843480,0.2151,4727.3,4727.2,0.7337]
[1759815843888,0.5419,4727.3,4727.2,0.7337]
[1759815844490,0.59255,4727.7,4727.6,0.7261]
[1759815844688,1.03921847,4727.7,4727.6,0.7261]
[1759815844884,0.65706847,4727.7,4727.6,0.7261]
[1759815845182,0.90752,4728.0,4727.9,0.7261]
[1759815845379,1.35424032,4728.0,4727.9,0.7261]
[1759815845887,1.35420871,4728.0,4727.9,0.7261]
[1759815846184,1.35423066,4728.0,4727.9,0.7261]
[1759815846381,0.97371066,4728.0,4727.9,0.7261]
[1759815846585,0.44671066,4728.0,4727.9,0.7261]
[1759815846784,0.90749,4728.4,4728.3,0.7261]
[1759815846988,0.44674935,4728.4,4728.3,0.7261]
[1759815847193,0.3166,4729.2,4728.6,0.7261]
[1759815847483,0.3166,4729.2,4728.6,3.9339]
[1759815847687,0.38044,4729.1,4728.6,3.9339]
[1759815848088,0.52936433,4728.7,4728.6,3.9339]
[1759815848290,1.19259557,4728.7,4728.6,0.7261]
[1759815848485,0.21276433,4728.7,4728.6,3.9339]
[1759815848788,0.00236433,4728.7,4728.6,3.9339]
[1759815851782,0.74596433,4728.7,4728.6,3.9339]
[1759815851982,1.12642433,4728.7,4728.6,3.2078]
[1759815852581,1.12642433,4728.7,4728.6,3.4174]
[1759815852788,1.57271627,4728.7,4728.6,3.4174]
[1759815852979,1.57271627,4728.7,4728.6,3.722]
[1759815854196,1.19225627,4728.7,4728.6,3.9339]
[1759815854391,0.65905627,4728.7,4728.6,3.9339]
[1759815855391,0.00236433,4728.7,4728.6,3.9339]
[1759815856088,0.00236433,4728.7,4728.6,8.9339]
[1759815856892,0.00236433,4728.7,4728.6,49.7339]
[1759815857282,0.59078,4729.7,4729.6,0.4215]
[1759815857486,0.97277836,4729.7,4729.6,3.9339]
[1759815858193,0.00211309,4729.7,4729.6,3.9339]
[1759815859085,0.21251309,4729.7,4729.6,3.9339]
[1759815859894,0.52911309,4729.7,4729.6,3.9339]
[1759815860887,0.21251309,4729.7,4729.6,3.9339]
[1759815861491,0.00211309,4729.7,4729.6,3.9339]
[1759815861691,0.52911309,4729.7,4729.6,3.9339]
[1759815862993,0.74571309,4729.7,4729.6,3.9339]
[1759815864092,0.74571309,4729.7,4729.6,3.6293]
[1759815864499,0.74571309,4729.7,4729.6,3.9339]
[1759815865296,0.21251309,4729.7,4729.6,3.9339]
[1759815865599,0.00211309,4729.7,4729.6,3.9339]
[1759815866096,0.21251309,4729.7,4729.6,3.9339]
[1759815867003,0.52911309,4729.7,4729.6,3.9339]
[1759815867700,0.74571309,4729.7,4729.6,3.9339]
[1759815868106,0.74571309,4729.7,4729.6,3.6293]
[1759815868791,0.74571309,4729.7,4729.6,0.2096]
[1759815868991,0.74571309,4729.7,4729.3,0.3046]
[1759815868992,0.7436,4729.4,4729.3,0.7261]
[1759815871992,0.7436,4729.4,4729.3,0.2096]
[1759815872192,0.7436,4729.4,4728.6,0.80196]
[1759815872193,0.427,4728.7,4728.6,0.80196]
[1759815872398,0.7436,4728.7,4728.6,0.7261]
[1759815872903,0.7436,4728.7,4728.6,0.2096]
[1759815873500,0.7436,4728.7,4728.6,0.7261]
[1759815875901,1.18868851,4728.7,4728.6,0.7261]
[1759815877400,0.742,4728.3,4728.2,0.7308]
[1759815877601,1.12249,4728.3,4728.2,0.2152]
[1759815877804,1.12249,4728.3,4727.8,0.307]
[1759815877805,0.4339,4727.9,4727.8,0.5222]
[1759815878104,1.12253,4727.9,4727.8,0.5222]
[1759815878504,1.12253,4727.9,4727.8,0.2152]
[1759815880905,1.12255,4727.6,4727.5,0.5222]
[1759815881108,1.12255,4727.6,4727.5,0.2152]
[1759815881403,1.12257,4727.3,4727.1,0.00221821]
[1759815881809,1.12257,4727.3,4727.2,0.7308]
[1759815882110,1.33357,4727.3,4727.2,0.7308]
[1759815882307,1.12257,4727.3,4727.2,0.7308]
[1759815882610,1.33357,4727.3,4727.2,0.7308]
[1759815883104,1.33357,4727.3,4727.1,0.00221821]
[1759815884306,2.80071547,4727.2,4727.1,0.00221821]
[1759815884607,3.54271547,4727.2,4727.1,0.00221821]
[1759815888111,3.75371547,4727.2,4727.1,0.00221821]
[1759815888814,3.54271547,4727.2,4727.1,0.21741821]
[1759815889011,3.75371547,4727.2,4727.1,0.52441821]
[1759815889714,3.54271547,4727.2,4727.1,0.52441821]
[1759815889913,3.75371547,4727.2,4727.1,0.52441821]
[1759815890213,0.953,4727.2,4727.1,0.52441821]
[1759815890808,0.953,4727.2,4727.1,0.21741821]
[1759815891611,0.953,4727.2,4727.1,0.00221821]
[1759815891812,3.72546497,4727.2,4727.1,0.00221821]
[1759815892812,0.4339,4726.1,4726.0,0.7308]
[1759815893016,0.742,4726.1,4726.0,0.7308]
[1759815893617,0.2151,4726.5,4726.4,0.2086]
[1759815893914,0.742,4726.2,4726.1,0.5222]
[1759815894114,0.742,4726.2,4726.1,0.73309122]
[1759815894717,0.2188,4726.2,4726.1,0.73309122]
[1759815895814,0.52956028,4726.5,4726.4,0.7308]
[1759815896122,0.00266028,4726.5,4726.4,3.9386]
[1759815901516,0.52956028,4726.5,4726.4,3.9386]
[1759815902115,0.74466028,4726.5,4726.4,3.9386]
[1759815902723,0.52956028,4726.5,4726.4,3.9386]
[1759815902923,0.22146028,4726.5,4726.4,3.9386]
[1759815903420,0.00266028,4726.5,4726.4,3.9386]
[1759815904024,0.52956028,4726.5,4726.4,3.9386]
[1759815904523,0.87216028,4726.5,4726.4,3.9386]
[1759815904926,0.74466028,4726.5,4726.4,3.9386]
[1759815906123,0.4357,4726.2,4726.1,0.51389122]
[1759815906325,0.7478,4726.2,4726.1,0.20439122]
[1759815907025,1.12846,4726.2,4726.1,0.20439122]
[1759815907233,1.57619212,4726.2,4726.1,0.00229122]
[1759815910429,1.57619212,4726.2,4726.1,0.51389122]
[1759815911034,1.57619212,4726.2,4726.1,0.20439122]
[1759815911434,1.57619212,4726.2,4726.1,0.51389122]
[1759815912127,1.57619212,4726.2,4726.1,0.00229122]
[1759815912326,9.2902594,4726.2,4726.1,0.00229122]
[1759815912836,4.2902594,4726.2,4726.1,0.00229122]
[1759815913934,4.5022594,4726.2,4726.1,0.00229122]
[1759815917135,4.2902594,4726.2,4726.1,0.00229122]
[1759815917337,4.5022594,4726.2,4726.1,0.51389122]
[1759815917531,1.57619212,4726.2,4726.1,0.51389122]
[1759815917736,1.78819212,4726.2,4726.1,0.51389122]
[1759815918235,0.44773212,4726.2,4726.1,0.72759122]
[1759815918443,0.00266028,4726.5,4726.4,0.4158]
[1759815918640,0.4499826,4726.5,4726.4,0.7253]
[1759815918841,0.00266028,4726.5,4726.4,0.7253]
[1759815919038,0.00266028,4726.5,4726.4,3.9331]
[1759815919843,0.00266028,4726.5,4726.4,8.9331]
[1759815920246,1.24702,4728.0,4727.9,0.7253]
[1759815920544,1.78758283,4728.0,4727.9,0.7253]
[1759815920933,1.34032,4728.0,4727.9,0.7253]
[1759815921139,1.34255366,4728.0,4727.9,0.7253]
[1759815922842,1.47005366,4728.0,4727.9,0.7253]
[1759815924640,1.08953366,4728.0,4727.9,0.7253]
[1759815924846,0.00223366,4728.0,4727.9,0.7253]
[1759815925653,0.22063366,4728.0,4727.9,0.7253]
[1759815925947,0.00223366,4728.0,4727.9,0.7253]
[1759815926132,0.56543366,4728.0,4727.6,3.2078]
[1759815926338,1.12841,4726.8,4726.7,1.13442292]
[1759815926538,0.38065,4726.4,4726.3,3.2078]
[1759815926742,0.9598,4726.4,4726.3,3.2078]
[1759815926934,0.9598,4726.4,4726.3,3.4099]
[1759815927140,0.9598,4726.4,4726.3,0.2021]
[1759815927946,0.9598,4726.4,4726.3,0.5116]
[1759815928350,0.9598,4726.4,4726.3,0.2021]
[1759815928945,0.9598,4726.4,4726.3,0.7253]
[1759815929336,0.38065,4726.3,4726.1,0.31179122]
[1759815929542,0.7478,4726.2,4726.1,0.00229122]
[1759815931649,0.7478,4726.2,4726.1,0.72759122]
[1759815931839,0.7478,4726.2,4726.1,0.00229122]
[1759815932545,0.7478,4726.2,4726.1,0.20439122]
[1759815932750,0.9598,4726.2,4726.1,0.51389122]
[1759815932950,0.9598,4726.2,4726.1,0.72759122]
[1759815933652,0.7478,4726.2,4726.1,0.72759122]
[1759815934350,0.9598,4726.2,4726.1,0.41809122]
[1759815934544,0.9598,4726.2,4726.1,0.00229122]
[1759815935353,0.7478,4726.2,4726.1,0.21649122]
[1759815935550,0.7478,4726.2,4726.1,0.52069122]
[1759815935746,0.59263,4726.6,4726.2,0.3042]
[1759815935945,0.4098,4726.3,4726.1,0.00229122]
[1759815936151,0.739,4726.2,4726.1,0.00229122]
[1759815936348,0.739,4726.2,4726.1,0.21649122]
[1759815936551,0.739,4726.2,4726.1,0.73979122]
[1759815937152,0.739,4726.2,4726.1,0.21649122]
[1759815937855,0.739,4726.2,4726.1,0.00229122]
[1759815938553,3.45432309,4726.2,4726.1,0.00229122]
[1759815939554,3.66632309,4726.2,4726.1,0.00229122]
[1759815942750,4.11285238,4726.2,4726.1,0.00229122]
[1759815944456,3.90085238,4726.2,4726.1,0.00229122]
[1759815944656,4.11285238,4726.2,4726.1,0.00229122]
[1759815948269,4.11285238,4726.2,4726.1,1.22e-06]
[1759815948557,4.11285238,4726.2,4725.1,3.2078]
[1759815948558,1.21066,4725.0,4724.9,0.4151]
[1759815948754,1.42266,4725.0,4724.9,0.7131]
[1759815949153,0.9127,4725.0,4724.9,0.7131]
[1759815949348,0.9127,4725.0,4724.9,0.71559681]
[1759815949754,0.7007,4725.0,4724.9,0.71559681]
[1759815949955,0.212,4725.1,4724.9,0.41759681]
[1759815950259,0.4115,4725.1,4725.0,0.841]
[1759815950861,0.7116,4725.1,4725.0,0.841]
[1759815951763,0.3001,4725.6,4725.0,0.543]
[1759815951966,0.58023,4725.4,4725.3,0.4151]
[1759815952165,0.88033,4725.4,4725.3,0.7131]
[1759815952557,1.08143,4725.4,4725.3,0.7131]
[1759815953061,1.29343,4725.4,4725.3,0.7131]
[1759815953461,1.08143,4725.4,4725.3,0.7131]
[1759815953760,1.29343,4725.4,4725.3,0.7131]
[1759815954854,1.29343,4725.4,4725.3,0.2081]
[1759815955258,1.08146,4725.0,4724.9,0.71559681]
[1759815956766,0.1995,4725.0,4724.9,0.71559681]
[1759815957660,0.7007,4725.0,4724.9,0.71559681]
[1759815957867,0.8299,4725.0,4724.9,0.71559681]
[1759815959661,0.8299,4725.0,4724.9,0.21059681]
[1759815960257,0.8299,4725.0,4724.9,0.00249681]
[1759815960568,0.7007,4724.2,4724.1,3.2078]
[1759815960769,0.7007,4724.2,4724.1,3.4159]
[1759815960972,0.7007,4724.2,4724.1,3.9209]
[1759815961663,0.70276479,4724.2,4724.1,3.92302504]
[1759815962768,0.70276479,4724.2,4724.1,3.20992504]
[1759815963073,0.70276479,4724.2,4724.1,3.41802504]
[1759815963474,0.70276479,4724.2,4724.1,3.92302504]
[1759815963770,0.70276479,4724.2,4724.1,3.62502504]
[1759815963970,0.70276479,4724.2,4724.1,3.41802504]
[1759815964274,0.70276479,4724.2,4724.1,0.00212504]
[1759815964473,1.15041087,4724.2,4724.1,0.00212504]
[1759815965374,3.96031308,4724.2,4724.1,0.00212504]
[1759815966969,1.09126,4723.7,4723.6,3.2078]
[1759815967170,0.3029,4723.6,4723.0,3.2078]
[1759815967476,0.7104,4723.1,4723.0,3.9302]
[1759815967674,1.09132,4723.1,4723.0,3.9302]
[1759815967973,0.7104,4723.1,4723.0,3.93198821]
[1759815968171,0.5122,4723.8,4723.7,0.4174]
[1759815968365,1.09126,4723.8,4723.7,0.7224]
[1759815968673,4.05665655,4723.8,4723.7,0.7224]
[1759815968973,1.30326,4723.8,4723.7,0.7224]
[1759815969269,1.09126,4723.8,4723.7,0.7224]
[1759815969473,1.30326,4723.8,4723.7,0.7224]
[1759815970065,1.30326,4723.8,4723.7,0.2152]
[1759815970267,1.21408,4723.5,4723.4,0.5202]
[1759815970574,1.09128,4723.5,4723.4,0.7224]
[1759815971075,1.21408,4723.5,4723.4,0.7224]
[1759815971275,1.21408,4723.5,4723.4,0.4174]
[1759815971467,1.21408,4723.5,4723.4,0.2152]
[1759815972077,1.21408,4723.5,4723.1,0.305]
[1759815972078,0.3809,4723.2,4723.1,0.305]
[1759815972275,0.7104,4723.1,4723.0,3.42478821]
[1759815973272,4.15993,4723.9,4723.0,3.93198821]
[1759815973477,4.15993,4723.9,4723.8,0.7224]
[1759815973478,0.5011,4723.9,4723.8,0.7224]
[1759815973671,0.7104,4723.9,4723.8,0.7224]
[1759815974272,0.7104,4723.9,4723.8,0.4174]
[1759815974877,0.21136479,4724.2,4724.1,0.2152]
[1759815975080,0.92446479,4724.2,4724.1,0.7224]
[1759815975680,0.71246479,4724.2,4724.1,0.7224]
[1759815975980,0.00206479,4724.2,4724.1,0.7224]
[1759815976782,0.00206479,4724.2,4724.1,5.7224]
[1759815980883,0.1982,4725.2,4725.1,0.4174]
[1759815981081,0.57893,4725.4,4725.3,0.4174]
[1759815981279,0.68361,4725.6,4725.3,0.4174]
[1759815981486,0.57891,4725.6,4725.5,0.8506]
[1759815981676,0.78821,4725.6,4725.5,0.7224]
[1759815981882,1.09329865,4725.6,4725.5,0.7224]
[1759815983080,1.09329865,4725.6,4725.5,0.4174]
[1759815983479,1.09329865,4725.6,4725.5,0.7224]
[1759815983784,1.30529865,4725.6,4725.5,0.7224]
[1759815983979,1.30529865,4725.6,4725.5,0.4174]
[1759815985285,1.30529865,4725.6,4725.5,0.2152]
[1759815987684,1.30529865,4725.6,4725.5,0.7224]
[1759815988388,1.30529865,4725.6,4725.5,0.4174]
[1759815988588,1.30529865,4725.6,4725.5,0.2152]
[1759815988981,1.30529865,4725.6,4725.5,0.7224]
[1759815991591,1.30529865,4725.6,4725.5,0.4174]
[1759815992189,1.30529865,4725.6,4725.5,0.7224]
[1759815992392,0.92458865,4725.6,4725.5,3.9302]
[1759815992592,0.3029,4726.4,4726.2,0.38066]
[1759815992794,0.7104,4726.4,4726.3,0.7224]
[1759815993593,0.71203192,4726.4,4726.3,0.7224]
[1759815995599,0.71203192,4726.4,4725.8,3.2078]
[1759815995600,0.3145,4726.1,4725.8,3.2078]
[1759815995793,0.7417,4725.9,4725.8,3.4149]
[1759815996497,0.7417,4725.9,4725.8,3.7119]
[1759815997296,0.5297,4725.9,4725.8,3.9189]
[1759816000496,0.21013192,4726.4,4726.3,0.7229]
[1759816000697,0.00163192,4726.4,4726.3,0.7229]
[1759816001496,0.73593192,4726.4,4726.3,0.4166]
[1759816001893,0.73593192,4726.4,4726.3,0.7229]
[1759816002295,1.18445667,4726.4,4726.3,0.7229]
[1759816003005,1.23468,4726.0,4725.9,0.2156]
[1759816003193,1.11498,4726.0,4725.9,0.7229]
[1759816004588,1.23468,4726.0,4725.9,0.2156]
[1759816004800,0.3182,4726.0,4725.9,0.7229]
[1759816004990,0.5267,4726.0,4725.9,0.7229]
[1759816006498,0.2085,4726.0,4725.9,0.7229]
[1759816006803,0.5267,4726.0,4725.9,0.7229]
[1759816007103,0.7343,4726.0,4725.9,0.7229]
[1759816008297,1.18375856,4726.0,4725.9,0.7229]
[1759816008598,1.30345856,4726.0,4725.9,0.7229]
[1759816012400,1.18375856,4726.0,4725.9,0.7229]
[1759816013198,0.65795856,4726.0,4725.9,0.7229]
[1759816013704,0.44945856,4726.0,4725.9,0.7229]
[1759816013893,0.3182,4726.3,4726.2,0.4166]
[1759816014203,0.5267,4726.3,4726.2,0.7229]
[1759816014397,0.9766168,4726.3,4726.2,0.7229]
[1759816014599,1.1842168,4726.3,4726.2,0.7229]
[1759816015103,0.4499168,4726.3,4726.2,0.7229]
[1759816015292,0.9766168,4726.3,4726.2,0.7229]
[1759816016404,1.1842168,4726.3,4726.2,0.7229]
[1759816016604,1.1842168,4726.3,4726.2,0.4166]
[1759816016804,1.1842168,4726.3,4726.2,0.7229]
[1759816017103,1.1842168,4726.3,4726.2,0.4166]
[1759816017305,1.1842168,4726.3,4726.2,0.7229]
[1759816019102,0.8660168,4726.3,4725.8,3.2078]
[1759816019296,0.7343,4724.8,4724.5,3.2078]
[1759816019596,0.7343,4724.6,4724.5,3.4234]
[1759816019798,1.18462524,4724.6,4724.5,3.7297]
[1759816020799,1.18462524,4724.6,4724.5,3.9307]
[1759816021003,0.65882524,4724.6,4724.5,4.0513]
[1759816021601,1.18462524,4724.6,4724.5,3.9307]
[1759816021802,1.18462524,4724.6,4724.5,0.7229]
[1759816023205,1.18462524,4724.6,4724.5,0.8435]
[1759816023506,1.18462524,4724.6,4724.5,0.7229]
[1759816024106,1.18462524,4724.6,4724.5,0.8447]
[1759816024305,0.7343,4724.6,4724.5,0.8447]
[1759816024611,0.7196,4725.2,4725.1,0.4135]
[1759816024906,1.18642244,4725.2,4725.1,0.7134]
[1759816026812,0.87702244,4725.2,4725.1,0.7134]
[1759816027011,1.18642244,4725.2,4725.1,0.7134]
[1759816029016,0.79097,4724.9,4724.8,0.4978]
[1759816029218,1.10037,4724.9,4724.8,0.7134]
[1759816032016,0.69018,4724.8,4724.6,40.8]
[1759816032318,1.10039,4724.6,4724.5,3.9212]
[1759816033117,0.7196,4724.6,4724.5,3.9212]
[1759816033313,0.69017,4724.9,4724.6,0.68069]
[1759816033519,0.69017,4724.9,4724.8,0.7134]
[1759816033921,0.90107,4724.9,4724.8,0.7134]
[1759816034117,0.59167,4724.9,4724.8,0.5155]
[1759816034322,1.10039,4724.6,4724.5,3.2078]
[1759816034523,1.56693901,4724.6,4724.5,3.2078]
[1759816036225,1.56693901,4724.6,4724.5,3.4057]
[1759816036726,1.56693901,4724.6,4724.5,3.9212]
[1759816041625,1.56693901,4724.6,4724.5,3.2078]
[1759816041826,0.5203,4724.1,4724.0,3.9212]
[1759816042020,0.38082,4724.3,4724.2,0.4135]
[1759816042225,0.84742731,4724.3,4724.2,0.7134]
[1759816042625,1.05832731,4724.3,4724.2,0.7134]
[1759816042836,0.90112,4724.3,4724.2,0.7134]
[1759816045232,1.37237066,4724.3,4724.2,0.7134]
[1759816045733,0.7196,4724.1,4724.0,3.2078]
[1759816046035,1.19086469,4724.1,4724.0,3.2078]
[1759816047528,0.3094,4723.4,4723.3,0.5155]
[1759816047825,0.47126469,4723.4,4723.3,0.6255]
[1759816048031,0.90116,4723.8,4723.7,0.4135]
[1759816048232,1.37256403,4723.8,4723.7,0.4135]
[1759816048433,1.37256403,4723.8,4723.7,0.7134]
[1759816049535,1.57186403,4723.8,4723.7,0.7134]
[1759816049732,4.27149276,4723.8,4723.7,0.7134]
[1759816049937,4.27149276,4723.8,4723.7,0.1979]
[1759816053039,4.48349276,4723.8,4723.7,0.1979]
[1759816053736,1.57186403,4723.8,4723.7,0.7134]
[1759816053935,1.78386403,4723.8,4723.7,0.7134]
[1759816054136,1.57185403,4723.8,4723.7,0.7134]
[1759816054536,0.80709,4723.4,4723.3,0.7468]
[1759816054744,1.10529,4723.4,4723.3,0.7468]
[1759816054938,0.58776,4723.8,4723.7,0.215]
[1759816055146,1.57664259,4723.8,4723.7,0.7468]
[1759816057343,0.5051,4723.8,4723.7,0.7468]
[1759816057540,0.38082,4724.3,4724.2,0.7136]
[1759816057939,0.3182,4724.7,4724.2,0.4103]
[1759816058136,0.47132257,4724.6,4724.5,0.5309]
[1759816058341,0.47132257,4724.6,4724.5,0.8342]
[1759816059044,1.00562257,4724.6,4724.5,0.8342]
[1759816059638,0.47132257,4724.6,4724.5,0.8342]
[1759816060244,0.47132257,4724.6,4724.5,5.8342]
[1759816060545,0.91506,4725.0,4724.9,0.4103]
[1759816060733,1.3864836,4725.0,4724.9,0.7136]
[1759816061339,1.5985836,4725.0,4724.9,0.7136]
[1759816061542,1.7243836,4725.0,4724.9,0.1977]
[1759816061851,0.69898,4724.7,4724.6,41.1033]
[1759816062347,1.12718,4724.7,4724.6,0.7136]
[1759816063742,0.5066,4724.5,4724.4,40.8]
[1759816063945,0.80901,4724.3,4723.8,0.3033]
[1759816064147,0.7464,4723.9,4723.8,0.713]
[1759816064344,0.7464,4723.9,4723.8,0.1977]
[1759816064549,0.7464,4723.9,4723.5,3.2078]
[1759816064550,0.38086,4723.7,4723.6,0.212]
[1759816064749,0.80906,4723.7,4723.6,0.4097]
[1759816064952,1.12726,4723.7,4723.6,0.4097]
[1759816065147,0.80906,4723.7,4723.5,3.2078]
[1759816065348,0.7464,4723.6,4723.5,3.9214]
[1759816068353,0.5343,4723.6,4723.5,4.042]
[1759816070053,1.12721,4724.4,4724.3,0.7136]
[1759816070253,1.59887776,4724.4,4724.3,0.7136]
[1759816070847,1.12723,4724.1,4724.0,0.501]
[1759816071043,0.38086,4723.8,4723.7,0.7279]
[1759816071251,0.3182,4725.4,4724.6,0.3033]
[1759816071547,0.47169755,4725.3,4725.2,0.7136]
[1759816071749,0.38073,4725.4,4725.2,0.4103]
[1759816071953,0.38073,4725.4,4725.3,0.7136]
[1759816072654,0.38071,4725.6,4725.5,0.4103]
[1759816072850,0.5343,4726.3,4725.7,0.2126]
[1759816073150,1.12705,4726.3,4726.2,0.7136]
[1759816073354,1.21741398,4726.3,4726.2,0.7136]
[1759816073555,0.68711398,4726.3,4726.2,0.7136]
[1759816073751,0.2161,4726.3,4726.2,0.7136]
[1759816073954,0.7464,4726.3,4726.2,0.7136]
[1759816080952,0.7464,4725.7,4725.6,0.501]
[1759816081252,0.7464,4725.7,4725.5,3.2078]
[1759816081253,0.38071,4725.6,4725.5,3.2078]
[1759816081447,1.12711,4725.6,4725.5,3.2078]
[1759816081852,1.12711,4725.6,4725.5,3.7088]
[1759816082152,0.38074,4725.2,4725.1,0.3033]
[1759816082372,0.7464,4725.1,4725.0,3.4055]
[1759816082551,0.7464,4725.1,4725.0,3.7088]
[1759816082753,0.7464,4725.1,4725.0,3.9214]
[1759816084751,0.7464,4725.1,4725.0,3.4055]
[1759816085458,0.7464,4725.1,4725.0,0.1977]
[1759816086558,0.7464,4725.1,4724.6,0.5377]
[1759816086559,0.7328,4724.7,4724.6,0.1979]
[1759816086765,0.5243,4724.3,4724.2,0.1979]
[1759816086968,0.7328,4724.1,4724.0,0.1979]
[1759816087165,0.7328,4724.1,4724.0,0.5236]
[1759816087764,0.7328,4724.1,4724.0,0.7253]
[1759816088868,0.7328,4724.1,4724.0,0.3996]
[1759816089061,0.7328,4724.1,4724.0,0.7253]
[1759816094361,0.4162,4724.1,4723.5,0.3257]
[1759816094662,1.1137,4723.3,4723.2,3.4057]
[1759816094867,1.11371,4723.1,4723.0,0.19968821]
[1759816095166,1.11371,4723.1,4723.0,0.00178821]
[1759816095363,1.11371,4723.1,4723.0,0.19968821]
[1759816096168,1.11371,4723.1,4723.0,0.00178821]
[1759816097969,1.11371,4723.1,4723.0,0.19968821]
[1759816098163,0.38088,4723.5,4723.3,0.3996]
[1759816098371,0.38086,4723.8,4723.5,0.522]
[1759816098663,1.11366,4723.8,4723.7,0.7253]
[1759816099462,1.11366,4723.8,4723.7,0.1979]
[1759816099668,1.11366,4723.8,4723.7,0.7253]
[1759816102368,0.212,4723.9,4723.4,0.1979]
[1759816102369,1.23948,4723.5,4723.4,0.1979]
[1759816102670,0.8586,4723.5,4723.4,0.7253]
[1759816102867,0.7328,4723.5,4723.4,0.7253]
[1759816105369,0.4162,4721.7,4721.6,0.3257]
[1759816105575,0.7328,4721.7,4721.6,0.5236]
[1759816105769,0.7328,4721.7,4721.6,0.1979]
[1759816105969,0.7328,4721.7,4721.6,0.7253]
[1759816106467,0.73533847,4721.7,4721.6,0.72696451]
[1759816106676,0.73533847,4721.7,4721.6,0.19956451]
[1759816108274,0.73533847,4721.7,4721.6,0.00166451]
[1759816110080,0.73533847,4721.7,4721.6,0.72696451]
[1759816110377,0.00253847,4721.7,4721.6,0.72696451]
[1759816112174,0.52763847,4721.7,4721.6,0.72696451]
[1759816112983,0.21103847,4721.7,4721.6,0.72696451]
[1759816114181,0.00253847,4721.7,4721.6,5.72696451]
[1759816114380,0.22033847,4721.7,4721.6,5.72696451]
[1759816114573,0.73493847,4721.7,4721.6,0.72696451]
[1759816115372,0.53593847,4721.7,4721.6,0.72696451]
[1759816116075,0.53593847,4721.7,4721.2,3.2078]
[1759816116076,0.2178,4720.8,4720.7,3.4068]
[1759816116375,0.7324,4720.8,4720.7,3.9387]
[1759816116572,0.38109,4720.9,4720.7,3.9387]
[1759816116773,0.2178,4720.8,4720.7,3.9387]
[1759816117279,0.5334,4720.8,4720.7,3.94119949]
[1759816117584,0.7324,4720.8,4720.7,3.94119949]
[1759816121474,0.7324,4720.8,4720.7,3.62539949]
[1759816121684,0.7324,4720.8,4720.7,3.40929949]